bitfinex-derivatives/quotes_ETHF0:USTF0_20250426
["timestamp","ask_amount","ask_price","bid_price","bid_amount"]
[1745675197505,3.2078,1782.4,1782.1,2.74398]
[1745675197506,1.12179,1782.3,1782.1,2.74398]
[1745675198003,1.12179,1782.3,1782.1,1.6221]
[1745675198204,4.32956,1782.4,1782.1,2.744]
[1745675198700,3.2078,1782.4,1782.2,1.12182]
[1745675198900,4.32952,1782.4,1782.2,1.12182]
[1745675199099,3.2078,1782.4,1782.3,1.12178]
[1745675199303,3.2078,1782.4,1782.2,1.12182]
[1745675199602,1.5896,1782.5,1782.1,1.6221]
[1745675199801,1.5896,1782.5,1782.4,1.12172]
[1745675200707,1.5896,1782.5,1782.2,1.5894]
[1745675200907,1.5896,1782.5,1782.4,1.12172]
[1745675202617,3.2078,1782.8,1782.7,1.12147]
[1745675203407,3.2078,1782.8,1782.7,1.12153]
[1745675203609,3.2078,1782.8,1782.6,6.97125]
[1745675203811,3.2078,1782.8,1782.7,1.12153]
[1745675204108,4.32914,1783.0,1782.8,1.12145]
[1745675204411,3.2078,1783.0,1782.8,1.12145]
[1745675204608,4.32914,1783.0,1782.7,1.7327]
[1745675204808,3.2078,1783.0,1782.7,1.7327]
[1745675205010,3.2078,1783.0,1782.9,1.1214]
[1745675205209,4.32917,1783.0,1782.8,1.12142]
[1745675205407,3.2078,1783.0,1782.7,1.7327]
[1745675205606,3.2078,1783.0,1782.4,3.2078]
[1745675205913,1.12155,1782.7,1782.5,1.12164]
[1745675206104,1.12159,1782.6,1782.4,4.32949]
[1745675206308,1.12159,1782.7,1782.4,4.32947]
[1745675206506,1.1216,1782.6,1782.4,4.32947]
[1745675207116,1.12154,1782.7,1782.4,3.2078]
[1745675207315,1.12154,1782.7,1782.5,1.12162]
[1745675207516,0.869,1782.6,1782.3,5.23875]
[1745675207815,0.8253,1782.5,1782.4,1.12172]
[1745675208115,4.0331,1782.5,1782.4,1.12172]
[1745675208415,5.15476,1782.5,1782.3,5.23874]
[1745675208611,4.0331,1782.5,1782.3,4.117]
[1745675208811,4.0331,1782.5,1782.2,1.6592]
[1745675209115,1.12178,1782.3,1782.1,5.23886]
[1745675209303,1.12178,1782.3,1782.1,4.117]
[1745675209507,1.12175,1782.4,1782.2,1.12183]
[1745675209915,1.12177,1782.4,1782.1,6.89807]
[1745675210118,6.42977,1782.4,1782.2,1.12183]
[1745675210311,5.308,1782.4,1782.1,4.117]
[1745675210814,1.1218,1782.3,1782.1,5.2389]
[1745675211015,1.12184,1782.2,1782.1,4.117]
[1745675211214,3.2078,1782.3,1782.2,1.12184]
[1745675211520,4.32958,1782.3,1782.1,6.86218]
[1745675212114,3.2078,1782.3,1782.2,1.12184]
[1745675212306,3.2078,1782.3,1782.2,2.74514]
[1745675212509,3.2078,1782.3,1782.1,4.117]
[1745675212819,3.2078,1782.3,1782.1,5.2389]
[1745675213021,3.2078,1782.3,1782.2,1.12184]
[1745675213319,3.2078,1782.3,1782.1,5.7403]
[1745675213617,4.32962,1782.3,1782.1,6.86218]
[1745675213818,4.32962,1782.3,1782.1,5.23888]
[1745675214012,3.2078,1782.3,1782.2,1.12184]
[1745675214214,3.2078,1782.3,1782.1,6.85136]
[1745675214723,3.2078,1782.3,1782.2,1.12184]
[1745675214926,4.0331,1782.5,1782.1,5.7295]
[1745675215116,1.12176,1782.4,1782.2,1.12182]
[1745675215617,4.0331,1782.5,1782.1,6.8514]
[1745675215817,1.12184,1782.2,1782.1,4.117]
[1745675216012,1.12184,1782.2,1782.0,4.32973]
[1745675216217,1.6869,1782.1,1782.0,4.32973]
[1745675216827,4.8947,1782.1,1781.7,4.0175]
[1745675217122,1.12257,1781.1,1780.8,4.78084133]
[1745675217324,4.33025,1781.3,1780.8,3.2078]
[1745675217629,3.2078,1781.3,1781.1,1.12252]
[1745675217814,3.2078,1781.5,1781.1,3.2078]
[1745675218013,1.6282,1781.5,1781.3,1.12239]
[1745675218218,3.68062,1782.0,1781.3,3.2078]
[1745675218219,4.0834,1782.0,1781.3,3.2078]
[1745675218423,1.6282,1781.9,1781.5,3.2078]
[1745675218615,3.2078,1781.7,1781.6,1.5971]
[1745675218820,1.6282,1781.9,1781.6,2.71928]
[1745675218821,5.95806,1781.9,1781.6,2.71928]
[1745675219020,3.2078,1781.7,1781.6,1.12222]
[1745675219218,1.6282,1781.8,1781.6,1.12216]
[1745675219525,2.75031,1781.8,1781.5,1.12224]
[1745675219715,1.12216,1781.7,1781.4,5.24031]
[1745675220023,1.5957,1781.7,1781.5,1.12226]
[1745675220216,1.5957,1781.7,1781.6,1.12222]
[1745675220423,3.2078,1781.9,1781.8,1.1221]
[1745675220625,4.8035,1781.9,1781.8,1.1221]
[1745675221416,3.2078,1782.3,1782.0,1.12194]
[1745675221624,4.8035,1782.3,1782.0,1.12194]
[1745675221824,1.5957,1782.2,1782.0,1.12194]
[1745675222418,2.71755,1782.2,1781.9,1.12199]
[1745675222624,1.5957,1782.2,1782.0,1.12197]
[1745675222921,1.651,1782.1,1782.0,1.12197]
[1745675224118,1.651,1782.1,1781.9,1.122]
[1745675224319,1.651,1782.1,1781.9,1.12197]
[1745675224517,1.651,1782.1,1782.0,1.12197]
[1745675225323,3.2078,1782.6,1782.0,12.3268]
[1745675225627,4.919,1782.6,1782.3,1.12174]
[1745675225925,1.7112,1782.5,1782.4,1.12172]
[1745675226228,7.0192,1782.5,1782.4,1.12172]
[1745675226424,5.308,1782.5,1782.4,1.12172]
[1745675226616,5.308,1782.5,1782.4,6.12172]
[1745675226822,5.308,1782.5,1782.4,7.81272]
[1745675227022,3.9545,1782.5,1782.4,7.81272]
[1745675227325,4.32889,1783.4,1783.1,1.12124]
[1745675227518,3.2078,1783.3,1782.9,3.2078]
[1745675227718,1.7112,1783.4,1783.0,5.798]
[1745675227924,1.7112,1783.4,1783.1,2.81226]
[1745675228226,3.2078,1783.2,1782.9,3.2078]
[1745675228421,4.919,1783.4,1783.1,2.81224]
[1745675228621,4.919,1783.4,1783.2,1.6903]
[1745675228820,1.6069,1783.3,1783.2,2.81152]
[1745675229022,0.8676,1783.5,1783.3,1.12115]
[1745675229217,1.6069,1783.5,1783.4,1.12109]
[1745675229729,3.2078,1783.6,1783.5,1.12103]
[1745675229921,3.2078,1783.6,1783.4,5.22805]
[1745675230229,3.2078,1783.8,1783.7,1.1209]
[1745675231528,3.2078,1783.8,1783.7,5.2269]
[1745675231730,5.308,1783.9,1783.8,1.12084]
[1745675231932,5.308,1783.9,1783.8,2.83584]
[1745675232323,1.6728,1784.2,1783.8,6.715]
[1745675232525,1.6728,1784.2,1784.1,1.12065]
[1745675233031,1.6728,1784.2,1784.1,2.83565]
[1745675233227,3.2078,1784.7,1784.1,9.9228]
[1745675233424,4.8806,1784.8,1784.3,3.2078]
[1745675233625,4.0679,1785.0,1784.7,1.12027]
[1745675233831,4.0679,1785.0,1784.5,3.2078]
[1745675234027,4.3277,1785.3,1784.8,3.2078]
[1745675234232,6.0005,1785.3,1784.9,2.83515]
[1745675234432,4.8806,1785.3,1785.0,1.12008]
[1745675234928,3.2078,1785.3,1785.2,1.11996]
[1745675235132,3.2078,1785.3,1785.1,5.22498]
[1745675235334,3.2078,1785.3,1785.2,1.6215]
[1745675235525,3.2078,1785.3,1785.2,2.74146]
[1745675236030,3.2078,1785.3,1785.2,1.6215]
[1745675236933,3.2078,1785.3,1785.2,2.74146]
[1745675237326,3.2078,1785.8,1785.2,12.62916]
[1745675237526,1.1195,1786.0,1785.6,1.11969]
[1745675237734,2.86934,1785.9,1785.6,4.104]
[1745675238135,4.9576,1785.9,1785.6,5.22369]
[1745675238327,10.2656,1785.9,1785.6,5.22369]
[1745675238727,11.38516,1785.9,1785.6,4.104]
[1745675239435,10.2656,1785.9,1785.6,4.104]
[1745675239631,10.2656,1785.9,1785.6,5.8382]
[1745675240147,10.2656,1785.9,1785.7,2.85382]
[1745675240437,8.5158,1785.9,1785.8,1.11958]
[1745675241126,3.2078,1785.9,1785.7,2.85383]
[1745675241637,3.2078,1785.9,1785.7,1.7342]
[1745675241931,3.2078,1785.9,1785.5,3.2078]
[1745675242227,1.11974,1785.6,1785.3,2.71599]
[1745675242436,1.7496,1785.5,1785.3,1.5961]
[1745675242735,1.7496,1785.5,1785.4,1.5961]
[1745675243135,7.0576,1785.5,1785.4,1.5961]
[1745675243831,8.17739,1785.5,1785.2,4.102]
[1745675244032,7.0576,1785.5,1785.0,1.6867]
[1745675244232,8.1774,1785.5,1785.1,1.11999]
[1745675244422,1.11986,1785.4,1785.2,1.6867]
[1745675244628,1.6054,1785.3,1785.0,5.22105]
[1745675244828,1.12001,1785.2,1785.0,4.101]
[1745675245028,1.6054,1785.1,1785.0,4.101]
[1745675245328,6.9134,1785.1,1785.0,4.101]
[1745675245524,5.308,1785.1,1785.0,1.12008]
[1745675245730,4.12559,1785.1,1785.0,10.22108]
[1745675246234,5.87,1785.7,1785.4,1.1198]
[1745675246435,3.56509,1785.8,1785.5,1.6867]
[1745675246631,2.4455,1785.8,1785.6,1.11968]
[1745675246828,3.2078,1785.9,1785.7,4.101]
[1745675247029,3.2078,1785.9,1785.8,1.11958]
[1745675247224,1.7284,1786.1,1785.7,5.7733]
[1745675247225,3.2078,1786.1,1786.0,1.11946]
[1745675247440,1.7284,1786.4,1786.1,1.11935]
[1745675247629,1.7284,1786.4,1786.2,2.79162]
[1745675248031,1.11903,1786.7,1786.3,1.11921]
[1745675248237,1.7284,1786.6,1786.4,2.7915]
[1745675248438,3.2078,1786.8,1786.5,1.1191]
[1745675248735,4.9362,1786.8,1786.6,2.79138]
[1745675248936,4.9362,1786.8,1786.7,1.6723]
[1745675249132,8.5158,1786.8,1786.7,1.6723]
[1745675249332,5.308,1786.8,1786.7,7.79132]
[1745675250028,5.308,1786.8,1786.7,1.6723]
[1745675250231,5.308,1786.8,1786.7,6.89132]
[1745675250432,5.308,1786.8,1786.7,4.1]
[1745675251140,6.9984,1786.8,1786.7,4.1]
[1745675251641,1.6904,1786.8,1786.7,1.643]
[1745675251938,3.2078,1786.9,1786.7,4.099]
[1745675252138,1.6904,1787.0,1786.8,1.11895]
[1745675252441,1.6904,1787.0,1786.9,1.643]
[1745675252635,1.6904,1787.0,1786.7,4.099]
[1745675252832,4.32673,1786.9,1786.7,4.099]
[1745675253033,1.7111,1786.8,1786.7,4.099]
[1745675253336,5.308,1786.9,1786.8,1.11896]
[1745675253536,5.308,1786.9,1786.8,1.7518]
[1745675253740,5.308,1786.9,1786.8,5.8508]
[1745675253929,5.308,1786.9,1786.8,6.96976]
[1745675254133,3.2078,1787.3,1786.8,5.8508]
[1745675254332,1.7111,1787.2,1786.9,2.87065]
[1745675255149,8.13781,1787.2,1786.9,2.87065]
[1745675255638,11.34561,1787.2,1786.9,1.7518]
[1745675255838,11.34561,1787.2,1786.9,2.87069]
[1745675256239,5.308,1787.2,1787.1,1.11877]
[1745675256636,5.308,1787.2,1787.1,7.79667]
[1745675256837,4.14964,1787.2,1787.1,7.79667]
[1745675257237,1.74,1787.8,1787.1,6.6779]
[1745675257434,1.74,1787.8,1787.5,3.2078]
[1745675257634,2.85837,1787.8,1787.6,4.221]
[1745675257835,1.74,1787.8,1787.6,4.221]
[1745675258037,1.93026,1788.0,1787.6,7.01733]
[1745675258237,5.308,1787.8,1787.7,1.6779]
[1745675258842,6.42633,1787.8,1787.7,1.6779]
[1745675259039,8.03903,1787.8,1787.7,1.6779]
[1745675259444,6.9207,1787.8,1787.7,1.6779]
[1745675259644,6.9207,1787.8,1787.6,4.221]
[1745675259844,8.03907,1787.8,1787.6,4.221]
[1745675260143,1.11852,1787.5,1787.4,1.6386]
[1745675260338,1.11852,1787.5,1787.4,5.8596]
[1745675260941,1.6127,1787.6,1787.2,62.822]
[1745675261150,1.11864,1787.3,1787.2,67.042]
[1745675261356,1.11877,1787.1,1787.0,1.6386]
[1745675261645,1.6127,1787.2,1787.0,5.8586]
[1745675261847,2.73142,1787.2,1787.0,6.97742]
[1745675262039,2.73142,1787.2,1787.0,5.8586]
[1745675262040,1.11877,1787.1,1787.0,5.8586]
[1745675262441,8.03944,1787.2,1787.0,1.6386]
[1745675262745,1.5821,1787.1,1787.0,2.75743]
[1745675262945,5.308,1787.2,1787.1,1.11877]
[1745675263145,4.7899,1787.7,1787.5,1.11848]
[1745675263338,3.2078,1787.7,1787.6,5.8428]
[1745675263742,3.2078,1787.9,1787.7,1.11836]
[1745675264040,3.2078,1787.9,1787.8,2.74113]
[1745675264243,3.2078,1787.9,1787.5,3.2078]
[1745675264448,1.11833,1787.8,1787.6,5.8428]
[1745675264644,1.11833,1787.8,1787.7,5.8428]
[1745675264852,1.5821,1787.8,1787.7,6.96119]
[1745675265349,6.8901,1787.8,1787.3,0.8169]
[1745675265546,8.00846,1787.8,1787.5,1.11846]
[1745675265748,6.8901,1787.8,1787.7,1.11839]
[1745675265947,5.308,1787.8,1787.7,1.11839]
[1745675266648,5.308,1787.8,1787.7,4.32619]
[1745675267351,5.308,1787.8,1787.7,45.12619]
[1745675268046,5.308,1787.8,1787.7,50.12619]
[1745675268252,3.9987,1788.4,1788.2,1.11803]
[1745675268451,4.871,1788.4,1788.3,1.11802]
[1745675268648,4.871,1788.4,1788.3,1.7198]
[1745675269246,10.179,1788.4,1788.3,1.7198]
[1745675269752,6.9712,1788.4,1788.2,4.22]
[1745675269949,1.11802,1788.3,1788.2,4.22]
[1745675270163,6.9712,1788.3,1788.2,4.22]
[1745675270351,8.08925,1788.3,1788.2,4.219]
[1745675270655,6.9712,1788.3,1788.2,4.219]
[1745675270857,8.08922,1788.3,1788.2,4.219]
[1745675271652,5.308,1788.3,1788.2,4.219]
[1745675271857,5.308,1788.3,1788.2,5.33708]
[1745675272456,5.308,1788.3,1788.2,4.219]
[1745675272649,7.0304,1788.3,1788.2,4.219]
[1745675272851,8.14842,1788.3,1788.2,4.218]
[1745675273054,7.0304,1788.3,1788.2,4.218]
[1745675273250,8.14842,1788.3,1788.1,2.82114]
[1745675273449,8.14842,1788.3,1788.2,4.218]
[1745675273650,7.0304,1788.3,1788.2,4.218]
[1745675273951,5.308,1788.3,1788.2,8.54388]
[1745675274150,5.308,1788.3,1788.2,7.03338]
[1745675275749,5.308,1788.3,1788.2,10.24118]
[1745675276457,1.0299005,1788.3,1788.2,10.24118]
[1745675278067,2.1479205,1788.3,1788.2,4.218]
[1745675278359,2.1479205,1788.3,1788.0,5.18029]
[1745675278360,1.0299005,1788.3,1788.1,1.11808]
[1745675278552,3.7783205,1788.3,1788.2,4.217]
[1745675278856,2.6603005,1788.3,1788.2,4.217]
[1745675279259,3.7783205,1788.3,1788.2,4.217]
[1745675280059,2.6603005,1788.3,1788.2,4.217]
[1745675280447,2.6603005,1788.3,1788.0,3.2078]
[1745675280653,3.2078,1788.1,1787.7,4.217]
[1745675280860,4.32608,1787.9,1787.7,4.217]
[1745675281053,1.7478,1787.8,1787.7,5.33537]
[1745675281857,1.7478,1787.8,1787.7,4.217]
[1745675282254,7.0558,1787.8,1787.7,4.217]
[1745675282461,7.0558,1787.8,1787.7,5.33539]
[1745675282661,7.0558,1787.8,1787.7,5.8838]
[1745675282865,5.308,1787.8,1787.7,7.00219]
[1745675284360,5.308,1787.8,1787.7,10.20999]
[1745675285560,5.308,1787.8,1787.7,15.20999]
[1745675285757,4.16525,1787.8,1787.7,21.12799]
[1745675286363,2.77438,1788.2,1787.9,1.11823]
[1745675286663,1.6563,1788.2,1788.0,5.2452]
[1745675287067,6.9643,1788.2,1788.0,5.2452]
[1745675287363,8.08238,1788.2,1788.0,5.2452]
[1745675287566,6.9643,1788.2,1788.0,5.2452]
[1745675288360,6.9643,1788.2,1788.0,4.127]
[1745675288558,8.08238,1788.2,1788.1,4.127]
[1745675288752,6.9643,1788.2,1788.1,4.127]
[1745675288952,6.9643,1788.2,1788.1,5.24514]
[1745675289358,6.9643,1788.2,1788.1,4.127]
[1745675290065,6.9643,1788.2,1788.1,5.24514]
[1745675290267,5.308,1788.2,1788.1,8.45294]
[1745675291159,5.308,1788.2,1788.1,10.12914]
[1745675293166,5.308,1788.2,1788.1,9.25564]
[1745675293863,5.308,1788.2,1788.1,8.1375]
[1745675294067,5.308,1788.2,1788.1,7.3348]
[1745675294262,5.308,1788.2,1788.1,8.45294]
[1745675295370,5.308,1788.2,1788.1,13.45294]
[1745675296258,3.2078,1788.5,1788.1,4.126]
[1745675296461,1.11798,1788.4,1788.2,1.5859]
[1745675296661,1.7194,1788.4,1788.2,1.5859]
[1745675297063,1.11802,1788.3,1788.1,4.126]
[1745675297267,1.7194,1788.2,1788.1,5.24414]
[1745675297669,1.7194,1788.2,1788.1,4.126]
[1745675297869,5.308,1788.4,1788.1,4.126]
[1745675298171,1.7194,1788.3,1788.2,1.11808]
[1745675298371,1.7194,1788.3,1788.2,1.5928]
[1745675298559,2.83745,1788.3,1788.0,1.11819]
[1745675298763,1.7194,1788.3,1788.1,5.24413]
[1745675298969,1.7194,1788.3,1788.2,1.11808]
[1745675299163,7.0274,1788.3,1788.2,1.5928]
[1745675299773,7.0274,1788.3,1787.9,3.2078]
[1745675299965,1.11821,1788.0,1787.9,4.126]
[1745675300273,9.63401,1788.0,1787.9,4.126]
[1745675301079,1.11836,1787.8,1787.6,4.126]
[1745675301270,4.32616,1787.8,1787.6,4.126]
[1745675301470,5.308,1788.0,1787.9,1.11827]
[1745675301975,5.308,1788.0,1787.9,4.32607]
[1745675302275,5.308,1788.0,1787.9,10.09007]
[1745675303078,5.308,1788.0,1787.9,15.09007]
[1745675303276,1.11787,1788.6,1788.3,1.11798]
[1745675303478,1.665,1788.5,1788.4,4.127]
[1745675304278,6.973,1788.5,1788.4,5.24496]
[1745675305172,5.308,1788.5,1788.4,5.24496]
[1745675305571,5.308,1788.5,1788.4,13.45276]
[1745675307180,4.8374,1789.0,1788.8,1.11768]
[1745675307381,4.8374,1789.0,1788.9,5.24364]
[1745675307567,3.2078,1789.0,1788.9,5.24364]
[1745675308183,5.308,1789.0,1788.9,8.45144]
[1745675308380,5.308,1789.0,1788.9,10.14874]
[1745675308681,5.308,1789.0,1788.9,4.126]
[1745675309181,6.942,1789.0,1788.9,4.126]
[1745675309880,8.05958,1789.0,1788.9,4.126]
[1745675310081,11.942,1789.0,1788.9,4.126]
[1745675310276,13.05958,1789.0,1788.9,4.126]
[1745675310482,1.11771,1788.8,1788.7,4.126]
[1745675310675,4.32551,1788.8,1788.7,4.126]
[1745675310981,4.32551,1788.8,1788.4,1.11792]
[1745675311177,1.11794,1788.5,1788.4,4.126]
[1745675311675,4.40354,1788.5,1788.4,4.126]
[1745675312084,3.2856,1788.5,1788.4,5.24396]
[1745675312378,9.71149,1788.5,1788.4,4.126]
[1745675312584,17.91929,1788.5,1788.4,4.126]
[1745675313478,1.11802,1788.3,1788.2,4.126]
[1745675313780,4.32582,1788.3,1788.2,4.126]
[1745675314080,9.32582,1788.3,1788.2,4.126]
[1745675314281,1.11833,1787.8,1787.6,1.1184]
[1745675314481,2.75282,1787.7,1787.6,4.126]
[1745675314681,1.11852,1787.5,1787.4,62.745]
[1745675314982,3.2078,1787.6,1787.4,5.24458]
[1745675315278,6.9424,1787.5,1787.4,5.24458]
[1745675315481,6.9424,1787.5,1787.4,4.126]
[1745675315885,8.06092,1787.5,1787.4,4.126]
[1745675316577,6.9424,1787.5,1787.4,4.126]
[1745675316988,6.9424,1787.5,1787.4,5.24458]
[1745675317181,6.9424,1787.5,1787.4,4.126]
[1745675317585,8.06092,1787.5,1787.4,4.126]
[1745675317887,6.9424,1787.5,1787.4,4.126]
[1745675318981,11.26872,1787.5,1787.4,4.126]
[1745675319281,15.1502,1787.5,1787.2,1.11871]
[1745675319487,6.9424,1787.5,1787.3,1.11862]
[1745675319688,8.06092,1787.5,1787.3,1.11862]
[1745675319986,8.06092,1787.5,1787.3,1.11864]
[1745675320287,6.9424,1787.5,1787.4,1.11858]
[1745675320588,6.9424,1787.5,1787.3,1.11861]
[1745675320781,8.06092,1787.5,1787.3,1.11861]
[1745675321085,11.26872,1787.5,1787.4,4.073]
[1745675324084,10.1502,1787.5,1787.4,4.073]
[1745675324390,11.26872,1787.5,1787.4,4.073]
[1745675324685,6.9424,1787.5,1787.4,4.073]
[1745675325086,8.06092,1787.5,1787.4,4.073]
[1745675325775,6.9424,1787.5,1787.4,4.073]
[1745675327488,6.9424,1787.5,1787.4,5.19158]
[1745675327785,6.9424,1787.5,1787.4,6.83858]
[1745675328887,6.9424,1787.5,1787.4,5.72]
[1745675329075,8.06092,1787.5,1787.4,4.073]
[1745675329282,6.9424,1787.5,1787.4,4.073]
[1745675329590,1.11875,1787.2,1787.1,4.073]
[1745675329787,4.32647,1787.3,1787.1,4.073]
[1745675329985,1.7509,1787.2,1787.1,4.073]
[1745675330196,2.86961,1787.2,1787.1,4.073]
[1745675330384,3.69691,1787.2,1787.1,4.073]
[1745675330688,2.5782,1787.2,1787.1,4.073]
[1745675330884,3.69691,1787.2,1787.1,4.073]
[1745675331079,9.00491,1787.2,1787.1,4.073]
[1745675331281,7.8862,1787.2,1787.1,4.073]
[1745675331791,5.308,1787.2,1787.1,5.19177]
[1745675331981,5.308,1787.2,1787.1,6.91117]
[1745675332182,5.308,1787.2,1787.1,11.91117]
[1745675332382,5.308,1787.2,1787.1,6.91117]
[1745675333588,5.308,1787.2,1787.1,11.91117]
[1745675333985,5.308,1787.2,1787.1,6.91117]
[1745675335687,6.9942,1787.2,1787.1,6.91117]
[1745675337085,5.308,1787.2,1787.1,6.91117]
[1745675337797,6.9386,1787.2,1787.1,5.7924]
[1745675338695,6.9386,1787.2,1787.1,6.91117]
[1745675340283,5.308,1787.2,1787.1,6.91117]
[1745675342495,6.999,1787.2,1787.1,6.91117]
[1745675342796,5.308,1787.2,1787.1,10.11897]
[1745675343193,5.308,1787.2,1787.1,6.91117]
[1745675343692,5.308,1787.2,1787.1,5.7924]
[1745675343887,5.308,1787.2,1787.0,1.99242]
[1745675343888,5.308,1787.2,1786.9,9.992]
[1745675344092,2.5017,1787.1,1786.9,9.992]
[1745675344295,2.75893,1787.0,1786.9,4.074]
[1745675344600,1.6401,1787.0,1786.5,4.074]
[1745675344791,4.3268,1786.8,1786.5,5.19313]
[1745675345000,1.6401,1786.7,1786.5,4.074]
[1745675345292,1.6401,1786.7,1786.5,5.7202]
[1745675345496,3.62072,1786.7,1786.5,4.074]
[1745675345696,3.3575,1786.7,1786.5,4.074]
[1745675345895,3.3575,1786.7,1786.6,1.6462]
[1745675346898,3.3575,1786.7,1786.6,2.76528]
[1745675347087,8.6655,1786.7,1786.6,2.76528]
[1745675347286,6.9481,1786.7,1786.6,2.76528]
[1745675348201,4.32664,1787.0,1786.7,1.11897]
[1745675348394,3.2078,1787.0,1786.9,1.11889]
[1745675348789,3.2965,1787.1,1786.9,2.71129]
[1745675348998,1.11883,1787.0,1786.9,1.5924]
[1745675349298,1.11883,1787.0,1786.8,3.993]
[1745675349299,6.8895,1787.0,1786.8,3.993]
[1745675349491,6.8895,1787.0,1786.9,2.71129]
[1745675350294,6.8895,1787.0,1786.9,1.5924]
[1745675350493,6.8895,1787.0,1786.8,5.11194]
[1745675350701,1.6529,1786.9,1786.8,3.993]
[1745675351094,6.9609,1786.9,1786.8,3.993]
[1745675351394,6.9609,1786.9,1786.8,5.11196]
[1745675351593,6.9609,1786.9,1786.8,3.993]
[1745675352402,8.07979,1786.9,1786.8,3.993]
[1745675353097,6.9609,1786.9,1786.8,3.993]
[1745675353897,6.9609,1786.9,1786.8,5.11196]
[1745675354700,6.9609,1786.9,1786.8,3.993]
[1745675355097,7.43179593,1786.9,1786.8,3.993]
[1745675356489,7.43179593,1786.9,1786.8,5.11196]
[1745675357394,5.77889593,1786.9,1786.8,13.31976]
[1745675357595,5.308,1786.9,1786.8,13.31976]
[1745675357795,2.09191,1786.9,1786.8,13.31976]
[1745675358007,3.2078,1787.4,1787.3,1.11864]
[1745675358197,3.2078,1787.4,1787.3,5.11164]
[1745675358597,3.2078,1787.8,1787.7,1.11839]
[1745675358900,0.7952,1787.9,1787.7,1.11838]
[1745675359102,6.9364,1787.9,1787.8,1.11833]
[1745675359494,5.75991074,1787.9,1787.8,1.11833]
[1745675359894,5.308,1787.9,1787.8,1.11833]
[1745675361002,5.308,1787.9,1787.7,2.79875]
[1745675361302,6.42629,1787.9,1787.6,45.91144]
[1745675361491,1.6284,1787.8,1787.6,47.59184]
[1745675361896,1.6284,1787.8,1787.7,2.79879]
[1745675362097,6.9364,1787.8,1787.7,2.79879]
[1745675362298,6.9364,1787.8,1787.7,1.6804]
[1745675363106,6.9364,1787.8,1787.7,2.79879]
[1745675363406,6.9364,1787.8,1787.7,3.992]
[1745675365401,6.9364,1787.8,1787.7,5.11039]
[1745675365907,6.9364,1787.8,1787.7,3.992]
[1745675366096,6.9364,1787.8,1787.7,5.11039]
[1745675366301,6.9364,1787.8,1787.7,6.71589]
[1745675367206,5.308,1787.8,1787.7,14.92369]
[1745675367509,0.86214,1787.8,1787.7,15.72569]
[1745675367715,0.0003094,1787.8,1787.7,15.72569]
[1745675367911,3.2078,1788.5,1788.4,1.11796]
[1745675368103,8.5158,1788.5,1788.4,5.10996]
[1745675368903,5.308,1788.5,1788.4,5.10996]
[1745675372212,5.308,1788.5,1788.4,8.31776]
[1745675373715,5.308,1788.5,1788.4,13.31776]
[1745675374204,2.72494,1788.9,1788.6,1.11782]
[1745675374407,2.72494,1788.9,1788.7,3.99]
[1745675374713,1.6073,1788.8,1788.7,3.99]
[1745675374907,2.72501,1788.8,1788.7,3.99]
[1745675375108,8.89461,1788.8,1788.7,3.99]
[1745675376018,17.10241,1788.8,1788.7,3.99]
[1745675376609,15.9847,1788.8,1788.3,1.5889]
[1745675376810,1.11792,1788.5,1788.4,3.99]
[1745675377316,2.70592,1788.5,1788.4,3.99]
[1745675377518,1.588,1788.5,1788.4,3.99]
[1745675377717,2.70589,1788.5,1788.4,3.99]
[1745675378119,6.896,1788.5,1788.4,3.99]
[1745675378416,6.896,1788.5,1788.4,5.10796]
[1745675379309,5.308,1788.5,1788.4,10.10796]
[1745675379510,5.308,1788.5,1788.4,11.78286]
[1745675379815,5.308,1788.5,1788.4,13.39946]
[1745675380321,1.588,1788.9,1788.8,1.11771]
[1745675380519,1.588,1788.9,1788.8,5.04771]
[1745675380822,1.588,1788.9,1788.8,3.93]
[1745675381122,6.896,1788.9,1788.8,3.93]
[1745675382620,8.01364,1788.9,1788.8,3.93]
[1745675383022,5.308,1788.9,1788.8,3.93]
[1745675383322,5.308,1788.9,1788.8,5.04771]
[1745675383522,5.308,1788.9,1788.8,8.25551]
[1745675383724,5.308,1788.9,1788.8,5.04771]
[1745675386723,5.308,1788.9,1788.8,3.93]
[1745675386925,5.308,1788.9,1788.8,5.04771]
[1745675387320,5.308,1788.9,1788.8,8.25551]
[1745675388216,2.4354,1789.1,1789.0,1.11758]
[1745675388217,1.6258,1789.1,1789.0,1.11758]
[1745675388522,0.7941,1789.2,1789.1,1.11752]
[1745675388827,0.7941,1789.2,1789.1,5.04752]
[1745675388828,2.4199,1789.2,1789.1,5.04752]
[1745675389218,7.7279,1789.2,1789.1,5.04752]
[1745675391430,8.84536,1789.2,1789.1,3.93]
[1745675392728,7.7279,1789.2,1789.0,3.929]
[1745675392921,6.00082,1789.1,1789.0,3.929]
[1745675393126,11.30882,1789.1,1789.0,3.929]